[Event "European Online Club-ch-H 2021"]
[Site "Online"]
[Date "2021.03.27"]
[Round "5.12"]
[White "Brodsky, Michail"]
[Black "Arndt, Magnus"]
[Result "0-1"]
[ECO "E49"]
[WhiteElo "2524"]
[BlackElo "2282"]
[Annotator "ChessBase"]
[PlyCount "88"]
[EventDate "2021.03.27"]
[EventType "team-tourn"]
[EventCountry "NET"]
[SourceTitle "playchess.com"]
[Source "ChessBase"]
[SourceQuality "1"]
[TimeControl "900+5"]

1. d4 {[%emt 0:00:00]} Nf6 {[%emt 0:00:03]} 2. c4 {[%emt 0:00:03]} e6 {[%emt 0:00:01]} 3. Nc3 {[%emt 0:00:01]} Bb4 {[%emt 0:00:02]} 4. f3 {[%emt 0:00:02]} d5 {[%emt 0:00:51]} 5. a3 {[%emt 0:00:05]} Bxc3+ {[%emt 0:00:04]} 6. bxc3 {[%emt 0:00:01]} c5 {[%emt 0:00:02]} 7. cxd5 {[%emt 0:00:02]} exd5 {[%emt 0:00:51]} 8. e3 {[%emt 0:00:04]} O-O {[%emt 0:00:15]} 9. Bd3 {[%emt 0:00:03]} b6 {[%emt 0:00:11]} 10. Ne2 {[%emt 0:00:02]} Ba6 {[%emt 0:00:06]} 11. O-O {[%emt 0:00:03]} Bxd3 {[%emt 0:01:17]} 12. Qxd3 {[%emt 0:00:04]} Re8 {[%emt 0:00:01]} 13. Ng3 {[%emt 0:00:07]} Nc6 {[%emt 0:00:04]} 14. Bb2 {[%emt 0:00:04]} Rc8 {[%emt 0:00:20]} 15. Rae1 {[%emt 0:01:15]} Qd7 {[%emt 0:00:58]} 16. e4 {[%emt 0:00:51]} cxd4 {[%emt 0:00:26]} 17. cxd4 {[%emt 0:00:05]} dxe4 {[%emt 0:00:18]} 18. fxe4 {[%emt 0:00:01]} Ne5 {[%emt 0:00:02]} 19. Qd1 {[%emt 0:03:22]} Nc4 {[%emt 0:00:16]} 20. Bc1 {[%emt 0:01:12]} Rcd8 {[%emt 0:01:43]} 21. e5 {[%emt 0:00:30]} Nd5 {[%emt 0:00:33]} 22. Qd3 {[%emt 0:00:28]} b5 {[%emt 0:00:26]} 23. Rd1 {[%emt 0:00:24]} Re6 {[%emt 0:00:56]} 24. Ne4 {[%emt 0:00:53]} Rg6 {[%emt 0:00:19]} 25. Qf3 {[%emt 0:00:20]} h6 {[%emt 0:00:43]} 26. h4 {[%emt 0:00:29]} a5 {[%emt 0:01:16]} 27. h5 {[%emt 0:00:08]} Rb6 {[%emt 0:00:12]} 28. Nc5 {[%emt 0:00:37]} Qe7 {[%emt 0:00:08]} 29. Rde1 {[%emt 0:00:41]} Nc7 {[%emt 0:00:35]} 30. Re4 {[%emt 0:00:36]} Ne6 {[%emt 0:00:19]} 31. Nxe6 {[%emt 0:00:02]} Qxe6 {[%emt 0:00:00]} 32. Rg4 {[%emt 0:00:04]} Qd5 {[%emt 0:02:47]} 33. Qg3 {[%emt 0:00:09]} Kh8 {[%emt 0:00:01]} 34. Kh1 {[%emt 0:02:22]} Rg8 {[%emt 0:01:02]} 35. Qf2 {[%emt 0:01:26]} b4 {[%emt 0:00:23]} 36. axb4 {[%emt 0:00:07]} axb4 {[%emt 0:00:00]} 37. Rf4 {[%emt 0:00:15]} b3 {[%emt 0:00:12]} 38. Bb2 {[%emt 0:00:02]} Ra6 {[%emt 0:00:12]} 39. Rxf7 {[%emt 0:00:19]} Ra2 {[%emt 0:00:05]} 40. Qg3 {[%emt 0:00:11]} Rxb2 {[%emt 0:00:08]} 41. Qg6 {[%emt 0:00:01]} Ne3 {[%emt 0:00:07]} 42. Rxg7 {[%emt 0:00:08]} Qxg2+ {[%emt 0:00:03]} 43. Qxg2 {[%emt 0:00:03]} Rxg2 {[%emt 0:00:00]} 44. Rb7 {[%emt 0:00:04]} Nxf1 {[%emt 0:00:04]} 0-1

[Event "European Online Club-ch-H 2021"]
[Site "Online"]
[Date "2021.03.27"]
[Round "5.13"]
[White "Vasli, Aref"]
[Black "Vaisser, Anatoly"]
[Result "0-1"]
[ECO "B30"]
[WhiteElo "2384"]
[BlackElo "2501"]
[Annotator "ChessBase"]
[PlyCount "132"]
[EventDate "2021.03.27"]
[EventType "team-tourn"]
[EventCountry "NET"]
[SourceTitle "playchess.com"]
[Source "ChessBase"]
[SourceQuality "1"]
[TimeControl "900+5"]

1. e4 {[%emt 0:00:00]} c5 {[%emt 0:00:04]} 2. Nf3 {[%emt 0:00:02]} Nc6 {[%emt 0:00:03]} 3. Bb5 {[%emt 0:00:07]} e6 {[%emt 0:00:04]} 4. O-O {[%emt 0:00:05]} Nge7 {[%emt 0:00:05]} 5. Re1 {[%emt 0:00:03]} a6 {[%emt 0:00:22]} 6. Bf1 {[%emt 0:00:03]} d5 {[%emt 0:00:12]} 7. exd5 {[%emt 0:00:21]} Nxd5 {[%emt 0:00:17]} 8. d4 {[%emt 0:00:06]} cxd4 {[%emt 0:00:17]} 9. Nxd4 {[%emt 0:00:02]} Be7 {[%emt 0:00:32]} 10. Nxc6 {[%emt 0:00:06]} bxc6 {[%emt 0:00:03]} 11. c4 {[%emt 0:00:10]} Nb4 {[%emt 0:00:09]} 12. Qa4 {[%emt 0:00:25]} O-O {[%emt 0:00:35]} 13. a3 {[%emt 0:00:51]} Nd3 {[%emt 0:00:11]} 14. Rd1 {[%emt 0:00:03]} Nc5 {[%emt 0:00:04]} 15. Qc2 {[%emt 0:00:02]} Qc7 {[%emt 0:00:13]} 16. b4 {[%emt 0:00:36]} Nd7 {[%emt 0:00:11]} 17. Nc3 {[%emt 0:00:31]} a5 {[%emt 0:00:16]} 18. Rb1 {[%emt 0:00:35]} axb4 {[%emt 0:00:12]} 19. axb4 {[%emt 0:00:04]} Rb8 {[%emt 0:00:56]} 20. c5 {[%emt 0:01:15]} Nf6 {[%emt 0:00:15]} 21. Bc4 {[%emt 0:00:55]} e5 {[%emt 0:00:13]} 22. Bg5 {[%emt 0:00:12]} Bg4 {[%emt 0:00:19]} 23. Re1 {[%emt 0:00:29]} Bh5 {[%emt 0:00:29]} 24. Rb3 {[%emt 0:00:10]} Rfe8 {[%emt 0:00:54]} 25. h3 {[%emt 0:02:44]} Bg6 {[%emt 0:00:08]} 26. Qe2 {[%emt 0:00:05]} e4 {[%emt 0:00:13]} 27. Qe3 {[%emt 0:00:19]} Rbd8 {[%emt 0:01:00]} 28. Bf4 {[%emt 0:00:08]} Qa7 {[%emt 0:00:31]} 29. Rc1 {[%emt 0:01:06]} Nh5 {[%emt 0:00:22]} 30. Bh2 {[%emt 0:00:17]} Bf6 {[%emt 0:00:22]} 31. Ne2 {[%emt 0:00:07]} h6 {[%emt 0:00:21]} 32. Rf1 {[%emt 0:00:13]} Bg5 {[%emt 0:00:07]} 33. Qc3 {[%emt 0:00:04]} Bd2 {[%emt 0:00:15]} 34. Qb2 {[%emt 0:00:08]} e3 {[%emt 0:00:17]} 35. Bd6 {[%emt 0:00:33]} exf2+ {[%emt 0:00:19]} 36. Kxf2 {[%emt 0:00:02]} Rxd6 {[%emt 0:00:15]} 37. Kg1 {[%emt 0:01:49]} Be3+ {[%emt 0:00:26]} 38. Rxe3 {[%emt 0:02:01]} Rxe3 {[%emt 0:00:07]} 39. Ra1 {[%emt 0:00:01]} Rxe2 {[%emt 0:01:01]} 40. Bxe2 {[%emt 0:00:10]} Rd2 {[%emt 0:00:05]} 41. Qc3 {[%emt 0:00:34]} Qd7 {[%emt 0:00:23]} 42. Ra8+ {[%emt 0:00:18]} Kh7 {[%emt 0:00:04]} 43. Bf3 {[%emt 0:00:02]} Nf4 {[%emt 0:00:21]} 44. b5 {[%emt 0:00:17]} Be4 {[%emt 0:01:03]} 45. Bxe4+ {[%emt 0:00:11]} Ng6 {[%emt 0:00:54]} 46. bxc6 {[%emt 0:00:13]} Rd1+ {[%emt 0:00:04]} 47. Kf2 {[%emt 0:00:01]} Qe7 {[%emt 0:00:21]} 48. Bf3 {[%emt 0:00:09]} Rb1 {[%emt 0:00:50]} 49. Ra4 {[%emt 0:00:08]} Rb5 {[%emt 0:00:45]} 50. Rc4 {[%emt 0:00:07]} Ne5 {[%emt 0:00:08]} 51. Qc2+ {[%emt 0:00:02]} g6 {[%emt 0:00:05]} 52. Rc3 {[%emt 0:00:05]} Nxf3 {[%emt 0:00:16]} 53. gxf3 {[%emt 0:00:02]} Qh4+ {[%emt 0:00:13]} 54. Kg2 {[%emt 0:00:01]} Qg5+ {[%emt 0:00:03]} 55. Kf1 {[%emt 0:00:02]} Qg3 {[%emt 0:00:10]} 56. Rb3 {[%emt 0:00:17]} Qxh3+ {[%emt 0:00:04]} 57. Kg1 {[%emt 0:00:02]} Qg3+ {[%emt 0:00:03]} 58. Kf1 {[%emt 0:00:01]} Ra5 {[%emt 0:00:12]} 59. Qc3 {[%emt 0:00:15]} Ra2 {[%emt 0:00:09]} 60. Rb2 {[%emt 0:00:01]} Ra1+ {[%emt 0:00:24]} 61. Ke2 {[%emt 0:00:02]} Qg2+ {[%emt 0:00:05]} 62. Ke3 {[%emt 0:00:05]} Qg1+ {[%emt 0:00:13]} 63. Kd3 {[%emt 0:00:08]} Qf1+ {[%emt 0:00:09]} 64. Ke3 {[%emt 0:00:07]} Re1+ {[%emt 0:00:15]} 65. Kf4 {[%emt 0:00:01]} Qh3 {[%emt 0:00:07]} 66. Qc2 {[%emt 0:00:13]} Qh4# {[%emt 0:00:06]} 0-1

[Event "European Online Club-ch-H 2021"]
[Site "Online"]
[Date "2021.03.27"]
[Round "5.14"]
[White "Roux, Olivier"]
[Black "Bromann, Thorbjorn"]
[Result "1/2-1/2"]
[ECO "B08"]
[WhiteElo "2156"]
[BlackElo "2392"]
[Annotator "NA"]
[PlyCount "140"]
[EventDate "2021.03.27"]
[EventType "team-tourn"]
[EventCountry "NET"]
[SourceTitle "playchess.com"]
[Source "ChessBase"]
[SourceQuality "1"]
[TimeControl "900+5"]

1. e4 {[%emt 0:00:00]} g6 {[%emt 0:00:04]} 2. Nf3 {[%emt 0:00:05]} Bg7 {[%emt 0:00:01]} 3. d4 {[%emt 0:00:02]} d6 {[%emt 0:00:02]} 4. Be2 {[%emt 0:00:44]} Nf6 {[%emt 0:00:04]} 5. Nc3 {[%emt 0:00:08]} O-O {[%emt 0:00:08]} 6. h3 {[%emt 0:00:05]} Nc6 {[%emt 0:00:10]} 7. Be3 {[%emt 0:00:02]} e5 {[%emt 0:00:05]} 8. dxe5 {[%emt 0:00:11]} dxe5 {[%emt 0:00:26]} 9. Bc4 {[%emt 0:00:17]} Qe7 {[%emt 0:00:33]} 10. Qe2 {[%emt 0:00:36]} Be6 {[%emt 0:01:39]} 11. O-O {[%emt 0:01:30]} Rfd8 {[%emt 0:00:21]} 12. Bg5 {[%emt 0:00:37]} Nd4 {[%emt 0:01:00]} 13. Nxd4 {[%emt 0:00:12]} exd4 {[%emt 0:00:00]} 14. Nb5 {[%emt 0:02:04]} Bxc4 {[%emt 0:02:42]} 15. Qxc4 {[%emt 0:00:05]} c6 {[%emt 0:00:07]} 16. Nxd4 {[%emt 0:00:22]} Qxe4 {[%emt 0:00:02]} 17. c3 {[%emt 0:00:04]} Qd5 {[%emt 0:00:48]} 18. Qxd5 {[%emt 0:00:22]} Rxd5 {[%emt 0:00:00]} 19. Nf3 {[%emt 0:00:13]} Ne4 {[%emt 0:00:13]} 20. Be3 {[%emt 0:00:04]} a6 {[%emt 0:00:13]} 21. Rfd1 {[%emt 0:00:19]} Rad8 {[%emt 0:00:02]} 22. Rxd5 {[%emt 0:00:03]} Rxd5 {[%emt 0:00:00]} 23. Kf1 {[%emt 0:00:06]} f5 {[%emt 0:00:32]} 24. a4 {[%emt 0:00:27]} Nd6 {[%emt 0:01:28]} 25. Bd4 {[%emt 0:00:48]} Nc4 {[%emt 0:00:43]} 26. b3 {[%emt 0:00:24]} Na5 {[%emt 0:00:49]} 27. Rb1 {[%emt 0:00:21]} Bxd4 {[%emt 0:00:17]} 28. cxd4 {[%emt 0:00:05]} b5 {[%emt 0:00:35]} 29. Ke2 {[%emt 0:00:41]} Nb7 {[%emt 0:00:05]} 30. Rc1 {[%emt 0:00:06]} c5 {[%emt 0:00:13]} 31. axb5 {[%emt 0:01:29]} axb5 {[%emt 0:00:11]} 32. Ke3 {[%emt 0:00:59]} cxd4+ {[%emt 0:00:46]} 33. Nxd4 {[%emt 0:00:03]} Re5+ {[%emt 0:00:51]} 34. Kd2 {[%emt 0:00:52]} Nc5 {[%emt 0:00:12]} 35. f3 {[%emt 0:00:11]} Rd5 {[%emt 0:00:13]} 36. Ke3 {[%emt 0:00:03]} f4+ {[%emt 0:00:12]} 37. Ke2 {[%emt 0:00:02]} Re5+ {[%emt 0:01:17]} 38. Kd2 {[%emt 0:00:06]} Rg5 {[%emt 0:00:08]} 39. Rg1 {[%emt 0:00:27]} b4 {[%emt 0:00:02]} 40. Kc2 {[%emt 0:00:19]} Kf7 {[%emt 0:00:28]} 41. Nc6 {[%emt 0:00:11]} Na6 {[%emt 0:00:12]} 42. Kd3 {[%emt 0:00:51]} Rc5 {[%emt 0:00:03]} 43. Nd4 {[%emt 0:00:06]} Rc3+ {[%emt 0:00:12]} 44. Ke4 {[%emt 0:00:04]} g5 {[%emt 0:00:02]} 45. Ra1 {[%emt 0:00:14]} Nc5+ {[%emt 0:00:04]} 46. Kf5 {[%emt 0:00:02]} Rd3 {[%emt 0:00:08]} 47. Ra7+ {[%emt 0:00:04]} Ke8 {[%emt 0:00:03]} 48. Nc6 {[%emt 0:00:48]} Rd5+ {[%emt 0:00:08]} 49. Kg4 {[%emt 0:00:07]} Nd7 {[%emt 0:00:10]} 50. h4 {[%emt 0:00:16]} Nf6+ {[%emt 0:00:12]} 51. Kh3 {[%emt 0:00:04]} Rd1 {[%emt 0:00:08]} 52. Kh2 {[%emt 0:00:02]} g4 {[%emt 0:00:01]} 53. g3 {[%emt 0:00:20]} Rd2+ {[%emt 0:00:07]} 54. Kg1 {[%emt 0:00:03]} fxg3 {[%emt 0:00:02]} 55. fxg4 {[%emt 0:00:10]} Nxg4 {[%emt 0:00:07]} 56. Rxh7 {[%emt 0:00:21]} Kf8 {[%emt 0:00:02]} 57. Re7 {[%emt 0:00:05]} Rd6 {[%emt 0:00:17]} 58. Re4 {[%emt 0:00:10]} Nf2 {[%emt 0:00:03]} 59. Rf4+ {[%emt 0:00:05]} Kg7 {[%emt 0:00:02]} 60. Rc4 {[%emt 0:00:09]} Nd1 {[%emt 0:00:03]} 61. Rg4+ {[%emt 0:00:05]} Kh6 {[%emt 0:00:04]} 62. Nxb4 {[%emt 0:00:05]} Ne3 {[%emt 0:00:13]} 63. Rxg3 {[%emt 0:00:05]} Rd1+ {[%emt 0:00:01]} 64. Kf2 {[%emt 0:00:02]} Nf5 {[%emt 0:00:04]} 65. Rd3 {[%emt 0:00:03]} Rxd3 {[%emt 0:00:07]} 66. Nxd3 {[%emt 0:00:02]} Nd4 {[%emt 0:00:00]} 67. b4 {[%emt 0:00:02]} Kh5 {[%emt 0:00:02]} 68. Ke3 {[%emt 0:00:01]} Nc2+ {[%emt 0:00:02]} 69. Kf4 {[%emt 0:00:03]} Nxb4 {[%emt 0:00:02]} 70. Nxb4 {[%emt 0:00:02]} Kxh4 {[%emt 0:00:02]} 1/2-1/2

[Event "European Online Club-ch-H 2021"]
[Site "Online"]
[Date "2021.03.27"]
[Round "5.15"]
[White "Aabling-Thomsen, Jakob"]
[Black "Kirszenberg, Marc"]
[Result "1-0"]
[ECO "B10"]
[WhiteElo "2348"]
[BlackElo "2130"]
[Annotator "NA"]
[PlyCount "109"]
[EventDate "2021.03.27"]
[EventType "team-tourn"]
[EventCountry "NET"]
[SourceTitle "playchess.com"]
[Source "ChessBase"]
[SourceQuality "1"]
[TimeControl "900+5"]

1. e4 {[%emt 0:00:00]} c6 {[%emt 0:00:02]} 2. d3 {[%emt 0:00:03]} d5 {[%emt 0:00:03]} 3. Nd2 {[%emt 0:00:03]} e5 {[%emt 0:00:02]} 4. Ngf3 {[%emt 0:00:02]} Bd6 {[%emt 0:00:02]} 5. g3 {[%emt 0:00:01]} Nf6 {[%emt 0:00:02]} 6. Bg2 {[%emt 0:00:02]} O-O {[%emt 0:00:01]} 7. O-O {[%emt 0:00:02]} Re8 {[%emt 0:00:05]} 8. Re1 {[%emt 0:00:25]} Nbd7 {[%emt 0:00:05]} 9. Nh4 {[%emt 0:00:45]} g6 {[%emt 0:01:44]} 10. Nf1 {[%emt 0:00:44]} Qc7 {[%emt 0:01:49]} 11. h3 {[%emt 0:00:11]} Bf8 {[%emt 0:00:42]} 12. Ne3 {[%emt 0:00:16]} d4 {[%emt 0:00:07]} 13. Ng4 {[%emt 0:00:08]} Nxg4 {[%emt 0:00:20]} 14. hxg4 {[%emt 0:00:00]} Nc5 {[%emt 0:00:20]} 15. Rf1 {[%emt 0:00:33]} Qd7 {[%emt 0:00:46]} 16. g5 {[%emt 0:00:12]} Ne6 {[%emt 0:00:18]} 17. f4 {[%emt 0:00:11]} exf4 {[%emt 0:00:07]} 18. gxf4 {[%emt 0:00:00]} Qd8 {[%emt 0:00:22]} 19. Qe1 {[%emt 0:01:55]} f5 {[%emt 0:01:28]} 20. gxf6 {[%emt 0:00:31]} Qxf6 {[%emt 0:00:03]} 21. f5 {[%emt 0:00:04]} Be7 {[%emt 0:00:08]} 22. Nxg6 {[%emt 0:01:05]} hxg6 {[%emt 0:00:06]} 23. fxe6 {[%emt 0:00:25]} Qxe6 {[%emt 0:00:03]} 24. Bd2 {[%emt 0:01:17]} Qg4 {[%emt 0:00:14]} 25. Rf4 {[%emt 0:00:06]} Qe6 {[%emt 0:00:13]} 26. Qf2 {[%emt 0:01:14]} Rf8 {[%emt 0:00:22]} 27. Qxd4 {[%emt 0:00:49]} Rxf4 {[%emt 0:00:14]} 28. Bxf4 {[%emt 0:00:00]} b6 {[%emt 0:00:04]} 29. Qe5 {[%emt 0:00:28]} Qxe5 {[%emt 0:00:25]} 30. Bxe5 {[%emt 0:00:00]} Be6 {[%emt 0:00:03]} 31. d4 {[%emt 0:00:12]} Rd8 {[%emt 0:00:06]} 32. c3 {[%emt 0:00:15]} b5 {[%emt 0:00:18]} 33. b3 {[%emt 0:00:13]} Ba3 {[%emt 0:00:21]} 34. Rd1 {[%emt 0:00:15]} Bb2 {[%emt 0:00:08]} 35. d5 {[%emt 0:00:05]} cxd5 {[%emt 0:00:14]} 36. exd5 {[%emt 0:00:03]} Bf5 {[%emt 0:00:07]} 37. d6 {[%emt 0:00:14]} b4 {[%emt 0:00:05]} 38. Bf6 {[%emt 0:00:16]} Rd7 {[%emt 0:00:14]} 39. Bd5+ {[%emt 0:00:13]} Kh7 {[%emt 0:00:35]} 40. Rd2 {[%emt 0:00:06]} g5 {[%emt 0:00:22]} 41. Rxb2 {[%emt 0:01:27]} Rxd6 {[%emt 0:00:04]} 42. Rf2 {[%emt 0:00:11]} Rxf6 {[%emt 0:00:02]} 43. Rxf5 {[%emt 0:00:23]} Rxf5 {[%emt 0:00:02]} 44. Be4 {[%emt 0:00:01]} Kg6 {[%emt 0:00:01]} 45. cxb4 {[%emt 0:00:06]} Kf6 {[%emt 0:00:01]} 46. Bxf5 {[%emt 0:00:02]} Kxf5 {[%emt 0:00:01]} 47. b5 {[%emt 0:00:05]} Ke5 {[%emt 0:00:07]} 48. a4 {[%emt 0:00:02]} Kd5 {[%emt 0:00:02]} 49. Kg2 {[%emt 0:00:05]} Kc5 {[%emt 0:00:10]} 50. Kg3 {[%emt 0:00:02]} Kb4 {[%emt 0:00:06]} 51. Kg4 {[%emt 0:00:03]} Kxb3 {[%emt 0:00:02]} 52. a5 {[%emt 0:00:01]} Kb4 {[%emt 0:00:01]} 53. b6 {[%emt 0:00:03]} axb6 {[%emt 0:00:01]} 54. axb6 {[%emt 0:00:03]} Kc5 {[%emt 0:00:02]} 55. b7 {[%emt 0:00:02]} 1-0

[Event "European Online Club-ch-H 2021"]
[Site "Online"]
[Date "2021.03.27"]
[Round "5.17"]
[White "Kazakov, Mikhail"]
[Black "Manik, Mikulas"]
[Result "1/2-1/2"]
[ECO "E61"]
[WhiteElo "2516"]
[BlackElo "2353"]
[Annotator "ChessBase"]
[PlyCount "114"]
[EventDate "2021.03.27"]
[EventType "team-tourn"]
[EventCountry "NET"]
[SourceTitle "playchess.com"]
[Source "ChessBase"]
[SourceQuality "1"]
[TimeControl "900+5"]

1. d4 {[%emt 0:00:00]} Nf6 {[%emt 0:00:04]} 2. c4 {[%emt 0:00:05]} g6 {[%emt 0:00:03]} 3. Nc3 {[%emt 0:00:04]} Bg7 {[%emt 0:00:02]} 4. Nf3 {[%emt 0:00:03]} O-O {[%emt 0:00:03]} 5. Bg5 {[%emt 0:00:04]} h6 {[%emt 0:00:07]} 6. Bh4 {[%emt 0:00:02]} c5 {[%emt 0:00:19]} 7. d5 {[%emt 0:00:03]} d6 {[%emt 0:00:12]} 8. e4 {[%emt 0:00:07]} g5 {[%emt 0:01:27]} 9. Bg3 {[%emt 0:00:05]} Nh5 {[%emt 0:00:02]} 10. Nd2 {[%emt 0:01:10]} Nxg3 {[%emt 0:00:05]} 11. hxg3 {[%emt 0:00:03]} e6 {[%emt 0:00:10]} 12. Be2 {[%emt 0:00:17]} a6 {[%emt 0:00:08]} 13. a4 {[%emt 0:00:09]} Nd7 {[%emt 0:00:26]} 14. O-O {[%emt 0:00:21]} exd5 {[%emt 0:01:36]} 15. cxd5 {[%emt 0:00:11]} f5 {[%emt 0:00:06]} 16. exf5 {[%emt 0:00:07]} Rxf5 {[%emt 0:00:04]} 17. Bg4 {[%emt 0:00:02]} Rf8 {[%emt 0:00:02]} 18. Be6+ {[%emt 0:00:03]} Kh8 {[%emt 0:00:04]} 19. Nc4 {[%emt 0:00:20]} Ne5 {[%emt 0:00:02]} 20. Qb3 {[%emt 0:00:36]} Bxe6 {[%emt 0:00:44]} 21. dxe6 {[%emt 0:00:04]} Qe7 {[%emt 0:00:03]} 22. Nxe5 {[%emt 0:01:36]} Bxe5 {[%emt 0:00:04]} 23. Rad1 {[%emt 0:00:26]} Rae8 {[%emt 0:00:44]} 24. Nd5 {[%emt 0:00:11]} Qxe6 {[%emt 0:00:09]} 25. Qxb7 {[%emt 0:00:04]} Rb8 {[%emt 0:00:13]} 26. Qe7 {[%emt 0:02:38]} Qxe7 {[%emt 0:00:06]} 27. Nxe7 {[%emt 0:00:02]} Kg7 {[%emt 0:00:10]} 28. Nc6 {[%emt 0:00:06]} Rxb2 {[%emt 0:00:04]} 29. Nxe5 {[%emt 0:00:07]} dxe5 {[%emt 0:00:03]} 30. Rd5 {[%emt 0:00:03]} Ra2 {[%emt 0:00:10]} 31. Rxc5 {[%emt 0:00:34]} Rxa4 {[%emt 0:00:05]} 32. Rxe5 {[%emt 0:00:02]} Ra2 {[%emt 0:00:11]} 33. f3 {[%emt 0:00:08]} Rd8 {[%emt 0:00:19]} 34. Kh2 {[%emt 0:00:11]} Rdd2 {[%emt 0:00:21]} 35. Rg1 {[%emt 0:00:03]} Kf6 {[%emt 0:02:00]} 36. Rc5 {[%emt 0:00:09]} Rac2 {[%emt 0:00:08]} 37. Rxc2 {[%emt 0:00:16]} Rxc2 {[%emt 0:00:02]} 38. Ra1 {[%emt 0:00:03]} Rc6 {[%emt 0:00:04]} 39. Ra5 {[%emt 0:00:14]} Kg6 {[%emt 0:00:11]} 40. g4 {[%emt 0:00:13]} Rb6 {[%emt 0:00:13]} 41. Kg3 {[%emt 0:00:11]} Rf6 {[%emt 0:00:10]} 42. Kf2 {[%emt 0:00:06]} h5 {[%emt 0:00:14]} 43. gxh5+ {[%emt 0:00:07]} Kxh5 {[%emt 0:00:03]} 44. Kg3 {[%emt 0:00:20]} Kg6 {[%emt 0:00:55]} 45. Rc5 {[%emt 0:00:21]} Kh5 {[%emt 0:00:16]} 46. Ra5 {[%emt 0:00:15]} Kg6 {[%emt 0:00:04]} 47. Ra4 {[%emt 0:00:15]} Kh5 {[%emt 0:00:05]} 48. Kf2 {[%emt 0:00:13]} Kg6 {[%emt 0:00:06]} 49. Ke3 {[%emt 0:00:07]} Re6+ {[%emt 0:00:05]} 50. Kf2 {[%emt 0:00:12]} Rf6 {[%emt 0:00:05]} 51. g4 {[%emt 0:00:08]} Rb6 {[%emt 0:00:08]} 52. Ra5 {[%emt 0:00:06]} Rb2+ {[%emt 0:00:08]} 53. Ke3 {[%emt 0:00:06]} Rb3+ {[%emt 0:00:09]} 54. Ke4 {[%emt 0:00:08]} Rb4+ {[%emt 0:00:03]} 55. Ke3 {[%emt 0:00:36]} Rb3+ {[%emt 0:00:02]} 56. Ke4 {[%emt 0:00:01]} Rb4+ {[%emt 0:00:03]} 57. Ke3 {[%emt 0:00:02]} Rb3+ {[%emt 0:00:02]} 1/2-1/2

[Event "European Online Club-ch-H 2021"]
[Site "Online"]
[Date "2021.03.27"]
[Round "5.18"]
[White "Danada, Tomas"]
[Black "Sabuk, Piotr"]
[Result "1/2-1/2"]
[ECO "A28"]
[WhiteElo "2321"]
[BlackElo "2366"]
[Annotator "NA"]
[PlyCount "128"]
[EventDate "2021.03.27"]
[EventType "team-tourn"]
[EventCountry "NET"]
[SourceTitle "playchess.com"]
[Source "ChessBase"]
[SourceQuality "1"]
[TimeControl "900+5"]

1. c4 {[%emt 0:00:00]} e5 {[%emt 0:00:04]} 2. Nc3 {[%emt 0:00:03]} Nf6 {[%emt 0:00:03]} 3. Nf3 {[%emt 0:00:04]} Nc6 {[%emt 0:00:02]} 4. a3 {[%emt 0:00:02]} g6 {[%emt 0:00:12]} 5. e4 {[%emt 0:00:24]} Bg7 {[%emt 0:00:06]} 6. Be2 {[%emt 0:00:07]} O-O {[%emt 0:00:23]} 7. O-O {[%emt 0:00:02]} Nd4 {[%emt 0:00:41]} 8. d3 {[%emt 0:00:13]} Nxe2+ {[%emt 0:00:06]} 9. Qxe2 {[%emt 0:00:01]} Re8 {[%emt 0:00:01]} 10. b4 {[%emt 0:00:42]} c6 {[%emt 0:00:13]} 11. c5 {[%emt 0:00:31]} d5 {[%emt 0:00:08]} 12. cxd6 {[%emt 0:00:01]} Qxd6 {[%emt 0:00:03]} 13. Rd1 {[%emt 0:00:14]} Nd7 {[%emt 0:00:05]} 14. Be3 {[%emt 0:00:17]} a5 {[%emt 0:00:07]} 15. b5 {[%emt 0:00:13]} c5 {[%emt 0:01:39]} 16. Nd2 {[%emt 0:00:29]} b6 {[%emt 0:00:27]} 17. Nc4 {[%emt 0:00:04]} Qb8 {[%emt 0:00:04]} 18. Nd5 {[%emt 0:01:59]} Ra7 {[%emt 0:00:29]} 19. a4 {[%emt 0:00:21]} Rb7 {[%emt 0:00:04]} 20. Rac1 {[%emt 0:00:07]} Nf8 {[%emt 0:00:22]} 21. f4 {[%emt 0:00:42]} Be6 {[%emt 0:00:17]} 22. Qf3 {[%emt 0:01:00]} Bxd5 {[%emt 0:00:18]} 23. exd5 {[%emt 0:00:02]} Nd7 {[%emt 0:00:27]} 24. f5 {[%emt 0:00:59]} e4 {[%emt 0:00:39]} 25. dxe4 {[%emt 0:00:17]} Ne5 {[%emt 0:00:03]} 26. Nxe5 {[%emt 0:00:52]} Qxe5 {[%emt 0:00:03]} 27. d6 {[%emt 0:02:48]} Rd7 {[%emt 0:00:30]} 28. Bg5 {[%emt 0:02:55]} Qxe4 {[%emt 0:01:03]} 29. Re1 {[%emt 0:00:39]} Bd4+ {[%emt 0:01:39]} 30. Kf1 {[%emt 0:00:16]} Qxf3+ {[%emt 0:00:02]} 31. gxf3 {[%emt 0:00:03]} Rxe1+ {[%emt 0:00:12]} 32. Rxe1 {[%emt 0:00:03]} Rxd6 {[%emt 0:00:25]} 33. Re8+ {[%emt 0:00:57]} Kg7 {[%emt 0:00:03]} 34. Rc8 {[%emt 0:00:02]} gxf5 {[%emt 0:00:09]} 35. Rc6 {[%emt 0:00:12]} Re6 {[%emt 0:00:47]} 36. Bd8 {[%emt 0:00:06]} c4 {[%emt 0:00:58]} 37. Rxc4 {[%emt 0:00:06]} Bc5 {[%emt 0:00:05]} 38. Bg5 {[%emt 0:00:11]} Rg6 {[%emt 0:00:12]} 39. Bf4 {[%emt 0:00:02]} Kf6 {[%emt 0:00:23]} 40. Ke2 {[%emt 0:00:01]} Ke6 {[%emt 0:00:10]} 41. Rc1 {[%emt 0:00:08]} Kd5 {[%emt 0:00:18]} 42. Rd1+ {[%emt 0:00:02]} Kc4 {[%emt 0:00:02]} 43. Rd7 {[%emt 0:00:03]} Re6+ {[%emt 0:00:49]} 44. Kd1 {[%emt 0:00:02]} Re7 {[%emt 0:00:02]} 45. Rd2 {[%emt 0:00:15]} Bb4 {[%emt 0:00:23]} 46. Bd6 {[%emt 0:00:06]} Bxd2 {[%emt 0:00:34]} 47. Bxe7 {[%emt 0:00:02]} Bb4 {[%emt 0:00:08]} 48. Bd8 {[%emt 0:00:02]} Bc5 {[%emt 0:00:02]} 49. Kc2 {[%emt 0:00:02]} Kb4 {[%emt 0:00:02]} 50. Kd3 {[%emt 0:00:07]} Kxa4 {[%emt 0:00:09]} 51. Kc4 {[%emt 0:00:01]} Bg1 {[%emt 0:01:28]} 52. h3 {[%emt 0:00:09]} Bc5 {[%emt 0:00:14]} 53. Bc7 {[%emt 0:00:07]} Be3 {[%emt 0:00:21]} 54. Bd8 {[%emt 0:00:06]} f4 {[%emt 0:00:04]} 55. Bc7 {[%emt 0:00:02]} h5 {[%emt 0:00:42]} 56. Bd8 {[%emt 0:00:02]} Ka3 {[%emt 0:00:13]} 57. Kc3 {[%emt 0:00:01]} a4 {[%emt 0:00:10]} 58. Bc7 {[%emt 0:00:04]} Ka2 {[%emt 0:00:06]} 59. Kc2 {[%emt 0:00:02]} f6 {[%emt 0:00:09]} 60. Bd6 {[%emt 0:00:06]} a3 {[%emt 0:00:08]} 61. Bc7 {[%emt 0:00:14]} Ka1 {[%emt 0:00:03]} 62. Bd6 {[%emt 0:00:03]} Ka2 {[%emt 0:00:05]} 63. Bc7 {[%emt 0:00:02]} Ka1 {[%emt 0:00:02]} 64. Bd6 {[%emt 0:00:01]} Ka2 {[%emt 0:00:01]} 1/2-1/2